[Event "Titled Tuesday Blitz August 15 Late 2023"]
[White "Vachier-Lagrave, Maxime"]
[Black "Tristan, Leonardo"]
[WhiteFideId "623539"]
[BlackFideId "113816"]
[WhiteElo "3121"]
[BlackElo "2782"]
[Result "1-0"]
[Round "3"]
[TimeControl "180+1"]
[Date "2023.08.15"]
[WhiteClock "0:00:14"]
[BlackClock "0:00:00"]
[Board "2"]

1. d4 {[%clk 0:03:00]}  d5 {[%clk 0:03:00]} 2. c4 {[%clk 0:03:00]}  e6 {[%clk 0:03:00]} 3. Nc3 {[%clk 0:02:59]}  h6 {[%clk 0:03:00]} 4. cxd5 {[%clk 0:02:57]}  exd5 {[%clk 0:03:00]} 5. Bf4 {[%clk 0:02:56]}  Nf6 {[%clk 0:03:01]} 6. e3 {[%clk 0:02:56]}  Bd6 {[%clk 0:03:01]} 7. Be5 {[%clk 0:02:44]}  c6 {[%clk 0:02:42]} 8. Nf3 {[%clk 0:02:39]}  O-O {[%clk 0:02:42]} 9. Bd3 {[%clk 0:02:37]}  Qe7 {[%clk 0:02:41]} 10. Qc2 {[%clk 0:02:30]}  Nbd7 {[%clk 0:02:23]} 11. Bxd6 {[%clk 0:02:25]}  Qxd6 {[%clk 0:02:23]} 12. O-O-O {[%clk 0:02:24]}  Re8 {[%clk 0:02:23]} 13. Kb1 {[%clk 0:02:20]}  a5 {[%clk 0:02:18]} 14. Rhg1 {[%clk 0:02:14]}  Nb6 {[%clk 0:02:16]} 15. h3 {[%clk 0:02:11]}  a4 {[%clk 0:02:15]} 16. g4 {[%clk 0:02:09]}  Nc4 {[%clk 0:01:48]} 17. Bxc4 {[%clk 0:01:30]}  dxc4 {[%clk 0:01:48]} 18. e4 {[%clk 0:01:29]}  Qf4 {[%clk 0:01:30]} 19. Ne5 {[%clk 0:01:27]}  a3 {[%clk 0:01:10]} 20. f3 {[%clk 0:01:20]}  axb2 {[%clk 0:00:56]} 21. Qd2 {[%clk 0:01:16]}  Qxd2 {[%clk 0:00:50]} 22. Rxd2 {[%clk 0:01:16]}  c5 {[%clk 0:00:29]} 23. Nxc4 {[%clk 0:01:16]}  cxd4 {[%clk 0:00:27]} 24. Rxd4 {[%clk 0:01:16]}  Be6 {[%clk 0:00:27]} 25. Nd6 {[%clk 0:01:16]}  Red8 {[%clk 0:00:25]} 26. Rgd1 {[%clk 0:01:12]}  Ne8 {[%clk 0:00:21]} 27. Kxb2 {[%clk 0:01:10]}  Nxd6 {[%clk 0:00:21]} 28. Rxd6 {[%clk 0:01:11]}  Rdc8 {[%clk 0:00:21]} 29. Rb6 {[%clk 0:01:06]}  Rc7 {[%clk 0:00:20]} 30. f4 {[%clk 0:00:56]}  Rac8 {[%clk 0:00:15]} 31. Rd3 {[%clk 0:00:56]}  Bc4 {[%clk 0:00:15]} 32. Re3 {[%clk 0:00:51]}  Rd8 {[%clk 0:00:15]} 33. a4 {[%clk 0:00:38]}  Rd2+ {[%clk 0:00:15]} 34. Ka3 {[%clk 0:00:38]}  Bd3 {[%clk 0:00:15]} 35. Rb3 {[%clk 0:00:36]}  Bc4 {[%clk 0:00:10]} 36. Rb2 {[%clk 0:00:35]}  Rd3 {[%clk 0:00:09]} 37. Rxd3 {[%clk 0:00:34]}  Bxd3 {[%clk 0:00:09]} 38. Kb3 {[%clk 0:00:32]}  Bc4+ {[%clk 0:00:10]} 39. Kb4 {[%clk 0:00:32]}  Bf1 {[%clk 0:00:10]} 40. Rh2 {[%clk 0:00:31]}  Bd3 {[%clk 0:00:09]} 41. Rd2 {[%clk 0:00:30]}  Bf1 {[%clk 0:00:09]} 42. h4 {[%clk 0:00:30]}  Rc4+ {[%clk 0:00:08]} 43. Kb3 {[%clk 0:00:30]}  Rc7 {[%clk 0:00:09]} 44. g5 {[%clk 0:00:29]}  hxg5 {[%clk 0:00:09]} 45. hxg5 {[%clk 0:00:30]}  Kh7 {[%clk 0:00:09]} 46. f5 {[%clk 0:00:29]}  Re7 {[%clk 0:00:04]} 47. Kb4 {[%clk 0:00:28]}  g6 {[%clk 0:00:03]} 48. Rh2+ {[%clk 0:00:21]}  Kg8 {[%clk 0:00:03]} 49. f6 {[%clk 0:00:16]}  Re5 {[%clk 0:00:04]} 50. Nd5 {[%clk 0:00:15]}  Rxe4+ {[%clk 0:00:00]} 51. Ka3 {[%clk 0:00:14]} 1-0


[Site "https://www.chess.com"]

[Event "Titled Tuesday Blitz August 15 Late 2023"]
[White "Rustemov, Alexander"]
[Black "Fedoseev, Vladimir"]
[WhiteFideId "4119002"]
[BlackFideId "24130737"]
[WhiteElo "2780"]
[BlackElo "3119"]
[Result "0-1"]
[Round "3"]
[TimeControl "180+1"]
[Date "2023.08.15"]
[WhiteClock "0:00:13"]
[BlackClock "0:01:01"]
[Board "3"]

1. d4 {[%clk 0:03:00]}  Nf6 {[%clk 0:02:54]} 2. c4 {[%clk 0:03:01]}  g6 {[%clk 0:02:55]} 3. Nf3 {[%clk 0:03:01]}  Bg7 {[%clk 0:02:56]} 4. g3 {[%clk 0:03:02]}  O-O {[%clk 0:02:56]} 5. Bg2 {[%clk 0:03:02]}  d6 {[%clk 0:02:56]} 6. O-O {[%clk 0:03:02]}  c6 {[%clk 0:02:56]} 7. Nc3 {[%clk 0:03:02]}  Qa5 {[%clk 0:02:56]} 8. h3 {[%clk 0:03:00]}  Qa6 {[%clk 0:02:48]} 9. b3 {[%clk 0:02:54]}  b5 {[%clk 0:02:46]} 10. Nd2 {[%clk 0:02:53]}  Bb7 {[%clk 0:02:43]} 11. Bb2 {[%clk 0:02:49]}  Nbd7 {[%clk 0:02:39]} 12. e3 {[%clk 0:02:49]}  bxc4 {[%clk 0:02:35]} 13. Nxc4 {[%clk 0:02:46]}  c5 {[%clk 0:02:34]} 14. dxc5 {[%clk 0:02:36]}  Bxg2 {[%clk 0:02:33]} 15. Kxg2 {[%clk 0:02:36]}  Nxc5 {[%clk 0:02:32]} 16. Qe2 {[%clk 0:02:35]}  Rab8 {[%clk 0:02:24]} 17. Rfd1 {[%clk 0:02:28]}  Rfc8 {[%clk 0:02:23]} 18. Rac1 {[%clk 0:02:27]}  Nxb3 {[%clk 0:01:35]} 19. axb3 {[%clk 0:02:23]}  Rxb3 {[%clk 0:01:35]} 20. Nd5 {[%clk 0:01:07]}  Nxd5 {[%clk 0:01:31]} 21. Bxg7 {[%clk 0:01:06]}  Nb6 {[%clk 0:01:21]} 22. Bh6 {[%clk 0:00:22]}  Nxc4 {[%clk 0:01:14]} 23. Rd4 {[%clk 0:00:20]}  Qb7+ {[%clk 0:01:13]} 24. Kh2 {[%clk 0:00:16]}  Rb2 {[%clk 0:01:02]} 25. Rdxc4 {[%clk 0:00:14]}  Rxc4 {[%clk 0:01:01]} 26. Qxc4 {[%clk 0:00:14]}  Rxf2+ {[%clk 0:01:00]} 27. Kg1 {[%clk 0:00:13]}  Qg2# {[%clk 0:01:01]} 0-1


[Site "https://www.chess.com"]

[Event "Titled Tuesday Blitz August 15 Late 2023"]
[White "Morefield, Jason"]
[Black "Duda, Jan-Krzysztof"]
[WhiteFideId "30920825"]
[BlackFideId "1170546"]
[WhiteElo "2755"]
[BlackElo "3051"]
[Result "0-1"]
[Round "3"]
[TimeControl "180+1"]
[Date "2023.08.15"]
[WhiteClock "0:00:02"]
[BlackClock "0:00:07"]
[Board "6"]

1. e4 {[%clk 0:02:50]}  g6 {[%clk 0:02:59]} 2. d4 {[%clk 0:02:50]}  Bg7 {[%clk 0:02:59]} 3. Nc3 {[%clk 0:02:51]}  b6 {[%clk 0:02:59]} 4. Be3 {[%clk 0:02:49]}  Bb7 {[%clk 0:02:59]} 5. Bc4 {[%clk 0:02:49]}  e6 {[%clk 0:02:58]} 6. Nf3 {[%clk 0:02:39]}  a6 {[%clk 0:02:58]} 7. O-O {[%clk 0:02:36]}  b5 {[%clk 0:02:57]} 8. Bd3 {[%clk 0:02:36]}  d6 {[%clk 0:02:57]} 9. Re1 {[%clk 0:02:33]}  Nd7 {[%clk 0:02:57]} 10. a4 {[%clk 0:02:26]}  b4 {[%clk 0:02:54]} 11. Na2 {[%clk 0:02:27]}  Ngf6 {[%clk 0:02:44]} 12. Bd2 {[%clk 0:02:16]}  a5 {[%clk 0:02:37]} 13. c3 {[%clk 0:02:10]}  c5 {[%clk 0:02:37]} 14. e5 {[%clk 0:02:02]}  dxe5 {[%clk 0:02:34]} 15. dxe5 {[%clk 0:02:01]}  Ng4 {[%clk 0:02:32]} 16. Bb5 {[%clk 0:01:42]}  O-O {[%clk 0:02:11]} 17. Bf4 {[%clk 0:01:34]}  Bxf3 {[%clk 0:02:08]} 18. Qxf3 {[%clk 0:01:26]}  Ngxe5 {[%clk 0:01:59]} 19. Qg3 {[%clk 0:01:22]}  b3 {[%clk 0:01:47]} 20. Nc1 {[%clk 0:01:19]}  c4 {[%clk 0:01:46]} 21. Rd1 {[%clk 0:00:53]}  Qc8 {[%clk 0:01:41]} 22. Rd4 {[%clk 0:00:38]}  Rd8 {[%clk 0:01:28]} 23. Ne2 {[%clk 0:00:38]}  h6 {[%clk 0:01:01]} 24. Rad1 {[%clk 0:00:32]}  g5 {[%clk 0:01:01]} 25. Be3 {[%clk 0:00:28]}  Qb7 {[%clk 0:00:37]} 26. f4 {[%clk 0:00:26]}  Nd3 {[%clk 0:00:34]} 27. fxg5 {[%clk 0:00:18]}  Be5 {[%clk 0:00:28]} 28. Qh3 {[%clk 0:00:16]}  Bxd4 {[%clk 0:00:14]} 29. Bxd4 {[%clk 0:00:16]}  Qe4 {[%clk 0:00:06]} 30. Qxh6 {[%clk 0:00:08]}  Qh7 {[%clk 0:00:05]} 31. Qxh7+ {[%clk 0:00:01]}  Kxh7 {[%clk 0:00:06]} 32. Rxd3 {[%clk 0:00:01]}  cxd3 {[%clk 0:00:06]} 33. Bxd3+ {[%clk 0:00:02]}  Kg8 {[%clk 0:00:06]} 34. Bb5 {[%clk 0:00:01]}  Rac8 {[%clk 0:00:06]} 35. Be3 {[%clk 0:00:01]}  Ne5 {[%clk 0:00:05]} 36. Nd4 {[%clk 0:00:01]}  Nc4 {[%clk 0:00:05]} 37. Bxc4 {[%clk 0:00:02]}  Rxc4 {[%clk 0:00:06]} 38. Nxb3 {[%clk 0:00:02]}  Rxa4 {[%clk 0:00:06]} 39. Nc5 {[%clk 0:00:02]}  Ra2 {[%clk 0:00:06]} 40. b4 {[%clk 0:00:02]}  Rd1# {[%clk 0:00:07]} 0-1


[Site "https://www.chess.com"]

[Event "Titled Tuesday Blitz August 15 Late 2023"]
[White "Stearman, Josiah"]
[Black "Grischuk, Alexander"]
[WhiteFideId "2062496"]
[BlackFideId "4126025"]
[WhiteElo "2753"]
[BlackElo "3047"]
[Result "1-0"]
[Round "3"]
[TimeControl "180+1"]
[Date "2023.08.15"]
[WhiteClock "0:00:05"]
[BlackClock "0:00:00"]
[Board "7"]

1. e4 {[%clk 0:02:54]}  e5 {[%clk 0:02:57]} 2. Nf3 {[%clk 0:02:54]}  Nc6 {[%clk 0:02:57]} 3. Bb5 {[%clk 0:02:53]}  a6 {[%clk 0:02:56]} 4. Ba4 {[%clk 0:02:54]}  Bc5 {[%clk 0:02:55]} 5. O-O {[%clk 0:02:38]}  Nge7 {[%clk 0:02:54]} 6. c3 {[%clk 0:02:37]}  Ng6 {[%clk 0:02:53]} 7. d4 {[%clk 0:02:37]}  Ba7 {[%clk 0:02:52]} 8. Bg5 {[%clk 0:02:34]}  f6 {[%clk 0:02:52]} 9. Be3 {[%clk 0:02:34]}  O-O {[%clk 0:02:52]} 10. Nbd2 {[%clk 0:02:34]}  d6 {[%clk 0:02:51]} 11. h3 {[%clk 0:02:34]}  Kh8 {[%clk 0:02:50]} 12. Kh1 {[%clk 0:02:21]}  Bd7 {[%clk 0:02:48]} 13. Bb3 {[%clk 0:02:17]}  Qc8 {[%clk 0:02:43]} 14. Kh2 {[%clk 0:02:06]}  Nd8 {[%clk 0:02:41]} 15. Rc1 {[%clk 0:01:58]}  Ne6 {[%clk 0:02:40]} 16. Bxe6 {[%clk 0:01:37]}  Bxe6 {[%clk 0:02:40]} 17. Nb3 {[%clk 0:01:38]}  Bd7 {[%clk 0:02:06]} 18. c4 {[%clk 0:01:37]}  Qe8 {[%clk 0:02:05]} 19. c5 {[%clk 0:01:33]}  exd4 {[%clk 0:01:44]} 20. Qxd4 {[%clk 0:01:33]}  dxc5 {[%clk 0:01:32]} 21. Nxc5 {[%clk 0:01:31]}  Bc6 {[%clk 0:01:32]} 22. Rfe1 {[%clk 0:01:23]}  Qf7 {[%clk 0:01:17]} 23. Qc4 {[%clk 0:01:19]}  Rae8 {[%clk 0:01:13]} 24. Qxf7 {[%clk 0:01:12]}  Rxf7 {[%clk 0:01:14]} 25. Nxa6 {[%clk 0:01:04]}  Bxe3 {[%clk 0:01:13]} 26. Rxe3 {[%clk 0:01:05]}  h6 {[%clk 0:01:09]} 27. Nd4 {[%clk 0:01:02]}  Bxe4 {[%clk 0:00:59]} 28. Nxc7 {[%clk 0:01:01]}  Rc8 {[%clk 0:00:45]} 29. Rxe4 {[%clk 0:00:51]}  Rfxc7 {[%clk 0:00:44]} 30. Rce1 {[%clk 0:00:47]}  Kh7 {[%clk 0:00:44]} 31. f4 {[%clk 0:00:45]}  Rd7 {[%clk 0:00:31]} 32. Ne6 {[%clk 0:00:26]}  f5 {[%clk 0:00:30]} 33. R4e2 {[%clk 0:00:23]}  b6 {[%clk 0:00:26]} 34. g3 {[%clk 0:00:23]}  Rd3 {[%clk 0:00:13]} 35. h4 {[%clk 0:00:22]}  Kg8 {[%clk 0:00:09]} 36. h5 {[%clk 0:00:20]}  Nh8 {[%clk 0:00:07]} 37. Re5 {[%clk 0:00:10]}  Nf7 {[%clk 0:00:06]} 38. Rxf5 {[%clk 0:00:10]}  Rd2+ {[%clk 0:00:06]} 39. Kh3 {[%clk 0:00:09]}  Rxb2 {[%clk 0:00:06]} 40. Nd4 {[%clk 0:00:09]}  Rd2 {[%clk 0:00:04]} 41. Nf3 {[%clk 0:00:08]}  Nd6 {[%clk 0:00:02]} 42. Rfe5 {[%clk 0:00:05]}  Rxa2 {[%clk 0:00:02]} 43. Rd5 {[%clk 0:00:05]}  Nf7 {[%clk 0:00:02]} 44. Re7 {[%clk 0:00:05]}  Ra3 {[%clk 0:00:02]} 45. Rdd7 {[%clk 0:00:04]}  Rxf3 {[%clk 0:00:01]} 46. Rxf7 {[%clk 0:00:05]}  Kh8 {[%clk 0:00:00]} 47. Rxg7 {[%clk 0:00:05]} 1-0


[Site "https://www.chess.com"]

[Event "Titled Tuesday Blitz August 15 Late 2023"]
[White "Dubov, Daniil"]
[Black "Ghazarian, Kirk"]
[WhiteFideId "24126055"]
[BlackFideId "30908604"]
[WhiteElo "3042"]
[BlackElo "2750"]
[Result "1-0"]
[Round "3"]
[TimeControl "180+1"]
[Date "2023.08.15"]
[WhiteClock "0:00:31"]
[BlackClock "0:00:00"]
[Board "8"]

1. d4 {[%clk 0:03:00]}  d5 {[%clk 0:02:59]} 2. Nf3 {[%clk 0:03:00]}  Nf6 {[%clk 0:02:58]} 3. Bg5 {[%clk 0:03:00]}  Ne4 {[%clk 0:02:55]} 4. Bh4 {[%clk 0:03:00]}  c5 {[%clk 0:02:54]} 5. e3 {[%clk 0:02:59]}  Qb6 {[%clk 0:02:53]} 6. Nbd2 {[%clk 0:02:57]}  Nc6 {[%clk 0:02:43]} 7. c3 {[%clk 0:02:53]}  Bf5 {[%clk 0:02:38]} 8. Nxe4 {[%clk 0:02:42]}  Bxe4 {[%clk 0:02:34]} 9. Bd3 {[%clk 0:02:35]}  Bxd3 {[%clk 0:02:18]} 10. Qxd3 {[%clk 0:02:34]}  g6 {[%clk 0:02:11]} 11. dxc5 {[%clk 0:02:30]}  Qxc5 {[%clk 0:02:12]} 12. Rd1 {[%clk 0:02:26]}  Rd8 {[%clk 0:02:11]} 13. O-O {[%clk 0:02:22]}  Bg7 {[%clk 0:02:11]} 14. e4 {[%clk 0:02:22]}  dxe4 {[%clk 0:02:05]} 15. Qxe4 {[%clk 0:02:22]}  O-O {[%clk 0:02:04]} 16. Rfe1 {[%clk 0:02:17]}  Bf6 {[%clk 0:01:45]} 17. Bxf6 {[%clk 0:02:14]}  exf6 {[%clk 0:01:46]} 18. g3 {[%clk 0:02:07]}  Kg7 {[%clk 0:01:43]} 19. Kg2 {[%clk 0:02:07]}  Qa5 {[%clk 0:01:37]} 20. a4 {[%clk 0:02:05]}  Rxd1 {[%clk 0:01:36]} 21. Rxd1 {[%clk 0:02:04]}  Rd8 {[%clk 0:01:36]} 22. Rxd8 {[%clk 0:02:02]}  Qxd8 {[%clk 0:01:37]} 23. b4 {[%clk 0:01:59]}  Qc7 {[%clk 0:01:31]} 24. Qc4 {[%clk 0:01:45]}  Qd7 {[%clk 0:01:26]} 25. a5 {[%clk 0:01:40]}  a6 {[%clk 0:01:21]} 26. Qe4 {[%clk 0:01:37]}  Qc7 {[%clk 0:01:19]} 27. h4 {[%clk 0:01:29]}  h5 {[%clk 0:01:18]} 28. Qd5 {[%clk 0:01:26]}  Ne7 {[%clk 0:01:15]} 29. Qd3 {[%clk 0:01:25]}  Qc6 {[%clk 0:01:14]} 30. c4 {[%clk 0:01:22]}  Nf5 {[%clk 0:01:06]} 31. b5 {[%clk 0:01:18]}  Qc5 {[%clk 0:00:58]} 32. Nd2 {[%clk 0:01:05]}  Nd6 {[%clk 0:00:53]} 33. b6 {[%clk 0:00:49]}  Qc6+ {[%clk 0:00:28]} 34. Qf3 {[%clk 0:00:44]}  Qxf3+ {[%clk 0:00:05]} 35. Kxf3 {[%clk 0:00:43]}  Kf8 {[%clk 0:00:04]} 36. c5 {[%clk 0:00:41]}  Nb5 {[%clk 0:00:04]} 37. Ke3 {[%clk 0:00:37]}  Nc3 {[%clk 0:00:01]} 38. c6 {[%clk 0:00:33]}  Nd5+ {[%clk 0:00:01]} 39. Kf3 {[%clk 0:00:31]}  bxc6 {[%clk 0:00:00]} 40. b7 {[%clk 0:00:31]} 1-0


[Site "https://www.chess.com"]

[Event "Titled Tuesday Blitz August 15 Late 2023"]
[White "Boruchovsky, Avital"]
[Black "Bluebaum, Matthias"]
[WhiteFideId "2800055"]
[BlackFideId "24651516"]
[WhiteElo "2742"]
[BlackElo "3031"]
[Result "0-1"]
[Round "3"]
[TimeControl "180+1"]
[Date "2023.08.15"]
[WhiteClock "0:00:02"]
[BlackClock "0:01:23"]
[Board "9"]

1. Nf3 {[%clk 0:03:00]}  d5 {[%clk 0:03:00]} 2. g3 {[%clk 0:03:01]}  e6 {[%clk 0:03:00]} 3. Bg2 {[%clk 0:03:01]}  Nf6 {[%clk 0:03:01]} 4. O-O {[%clk 0:03:01]}  Bd6 {[%clk 0:03:02]} 5. d4 {[%clk 0:03:01]}  O-O {[%clk 0:03:02]} 6. c4 {[%clk 0:03:01]}  Nc6 {[%clk 0:03:03]} 7. Nc3 {[%clk 0:02:58]}  dxc4 {[%clk 0:03:02]} 8. e4 {[%clk 0:02:56]}  e5 {[%clk 0:03:03]} 9. d5 {[%clk 0:02:55]}  Na5 {[%clk 0:03:02]} 10. Be3 {[%clk 0:02:49]}  Bd7 {[%clk 0:03:02]} 11. h3 {[%clk 0:02:48]}  b5 {[%clk 0:03:02]} 12. Nd2 {[%clk 0:02:39]}  Nb7 {[%clk 0:02:56]} 13. Qe2 {[%clk 0:02:17]}  Nc5 {[%clk 0:02:53]} 14. a4 {[%clk 0:02:12]}  a6 {[%clk 0:02:49]} 15. Rfb1 {[%clk 0:01:59]}  Qe7 {[%clk 0:02:41]} 16. a5 {[%clk 0:01:24]}  b4 {[%clk 0:02:17]} 17. Na2 {[%clk 0:01:09]}  Bb5 {[%clk 0:02:17]} 18. Nxc4 {[%clk 0:00:42]}  Nb3 {[%clk 0:02:15]} 19. Qc2 {[%clk 0:00:31]}  Nxa1 {[%clk 0:02:13]} 20. Rxa1 {[%clk 0:00:32]}  Bc5 {[%clk 0:02:09]} 21. Bg5 {[%clk 0:00:25]}  h6 {[%clk 0:02:05]} 22. Bd2 {[%clk 0:00:20]}  Rab8 {[%clk 0:02:01]} 23. Nc1 {[%clk 0:00:19]}  c6 {[%clk 0:01:52]} 24. Nd3 {[%clk 0:00:09]}  cxd5 {[%clk 0:01:47]} 25. Ncxe5 {[%clk 0:00:09]}  Rfc8 {[%clk 0:01:25]} 26. Nxc5 {[%clk 0:00:06]}  Rxc5 {[%clk 0:01:26]} 27. Bxb4 {[%clk 0:00:06]}  Rxc2 {[%clk 0:01:23]} 28. Bxe7 {[%clk 0:00:02]}  Nxe4 {[%clk 0:01:23]} 0-1


[Site "https://www.chess.com"]

[Event "Titled Tuesday Blitz August 15 Late 2023"]
[White "Kollars, Dmitrij"]
[Black "Lobanov, Sergei"]
[WhiteFideId "12909572"]
[BlackFideId "24183750"]
[WhiteElo "3025"]
[BlackElo "2739"]
[Result "0-1"]
[Round "3"]
[TimeControl "180+1"]
[Date "2023.08.15"]
[WhiteClock "0:00:00"]
[BlackClock "0:00:04"]
[Board "10"]

1. e4 {[%clk 0:03:00]}  e5 {[%clk 0:02:59]} 2. Nf3 {[%clk 0:03:00]}  Nc6 {[%clk 0:03:00]} 3. Bc4 {[%clk 0:02:59]}  Nf6 {[%clk 0:03:00]} 4. d3 {[%clk 0:02:59]}  Bc5 {[%clk 0:03:00]} 5. Nc3 {[%clk 0:02:59]}  a6 {[%clk 0:02:57]} 6. h3 {[%clk 0:02:56]}  d6 {[%clk 0:02:57]} 7. Be3 {[%clk 0:02:55]}  Bxe3 {[%clk 0:02:45]} 8. fxe3 {[%clk 0:02:56]}  Na5 {[%clk 0:02:45]} 9. Bb3 {[%clk 0:02:53]}  O-O {[%clk 0:02:42]} 10. O-O {[%clk 0:02:52]}  h6 {[%clk 0:02:40]} 11. Qe1 {[%clk 0:02:53]}  Nxb3 {[%clk 0:02:37]} 12. axb3 {[%clk 0:02:53]}  Be6 {[%clk 0:02:36]} 13. Nh4 {[%clk 0:02:48]}  Nd7 {[%clk 0:02:04]} 14. Nf5 {[%clk 0:02:46]}  f6 {[%clk 0:01:59]} 15. Qg3 {[%clk 0:02:36]}  Bxf5 {[%clk 0:01:59]} 16. Rxf5 {[%clk 0:02:29]}  Nc5 {[%clk 0:01:59]} 17. Raf1 {[%clk 0:02:28]}  c6 {[%clk 0:02:00]} 18. Qg4 {[%clk 0:02:14]}  Qe7 {[%clk 0:01:23]} 19. Ne2 {[%clk 0:02:08]}  d5 {[%clk 0:01:23]} 20. Ng3 {[%clk 0:01:41]}  dxe4 {[%clk 0:01:22]} 21. b4 {[%clk 0:01:37]}  Ne6 {[%clk 0:01:15]} 22. Nxe4 {[%clk 0:01:36]}  Ng5 {[%clk 0:01:16]} 23. Nc5 {[%clk 0:01:31]}  b6 {[%clk 0:01:09]} 24. Na4 {[%clk 0:01:11]}  Rab8 {[%clk 0:00:56]} 25. h4 {[%clk 0:00:56]}  Ne6 {[%clk 0:00:55]} 26. Nc3 {[%clk 0:00:53]}  Kh7 {[%clk 0:00:50]} 27. Qe4 {[%clk 0:00:49]}  Kh8 {[%clk 0:00:21]} 28. Qxc6 {[%clk 0:00:47]}  Rfc8 {[%clk 0:00:16]} 29. Qe4 {[%clk 0:00:45]}  Rd8 {[%clk 0:00:14]} 30. Nd5 {[%clk 0:00:43]}  Qb7 {[%clk 0:00:14]} 31. c4 {[%clk 0:00:41]}  Nc7 {[%clk 0:00:13]} 32. Nxc7 {[%clk 0:00:20]}  Qxc7 {[%clk 0:00:13]} 33. b3 {[%clk 0:00:18]}  Rd7 {[%clk 0:00:13]} 34. d4 {[%clk 0:00:17]}  exd4 {[%clk 0:00:12]} 35. exd4 {[%clk 0:00:18]}  Qd6 {[%clk 0:00:12]} 36. Rd5 {[%clk 0:00:16]}  Qc6 {[%clk 0:00:11]} 37. Re5 {[%clk 0:00:15]}  Qd6 {[%clk 0:00:07]} 38. Re8+ {[%clk 0:00:13]}  Rxe8 {[%clk 0:00:07]} 39. Qxe8+ {[%clk 0:00:14]}  Kh7 {[%clk 0:00:08]} 40. Qe4+ {[%clk 0:00:15]}  Kh8 {[%clk 0:00:06]} 41. Qe8+ {[%clk 0:00:15]}  Kh7 {[%clk 0:00:07]} 42. Qe4+ {[%clk 0:00:14]}  Kh8 {[%clk 0:00:07]} 43. d5 {[%clk 0:00:14]}  Re7 {[%clk 0:00:06]} 44. Qd4 {[%clk 0:00:13]}  Qxb4 {[%clk 0:00:07]} 45. d6 {[%clk 0:00:14]}  Rd7 {[%clk 0:00:06]} 46. Rd1 {[%clk 0:00:14]}  Qxb3 {[%clk 0:00:04]} 47. Qd5 {[%clk 0:00:11]}  Qb4 {[%clk 0:00:03]} 48. Kh2 {[%clk 0:00:09]}  Qc5 {[%clk 0:00:03]} 49. Qe6 {[%clk 0:00:07]}  Qe5+ {[%clk 0:00:03]} 50. Qxe5 {[%clk 0:00:07]}  fxe5 {[%clk 0:00:04]} 51. Kg3 {[%clk 0:00:08]}  Kg8 {[%clk 0:00:04]} 52. Kg4 {[%clk 0:00:09]}  g6 {[%clk 0:00:04]} 53. h5 {[%clk 0:00:09]}  Kf7 {[%clk 0:00:05]} 54. hxg6+ {[%clk 0:00:09]}  Kxg6 {[%clk 0:00:06]} 55. Kf3 {[%clk 0:00:07]}  Kf5 {[%clk 0:00:06]} 56. g4+ {[%clk 0:00:06]}  Ke6 {[%clk 0:00:06]} 57. Rh1 {[%clk 0:00:07]}  Kxd6 {[%clk 0:00:07]} 58. Rxh6+ {[%clk 0:00:07]}  Kc5 {[%clk 0:00:07]} 59. g5 {[%clk 0:00:07]}  a5 {[%clk 0:00:08]} 60. Re6 {[%clk 0:00:06]}  a4 {[%clk 0:00:07]} 61. Rxe5+ {[%clk 0:00:02]}  Kxc4 {[%clk 0:00:07]} 62. Re4+ {[%clk 0:00:03]}  Kb3 {[%clk 0:00:06]} 63. Re3+ {[%clk 0:00:03]}  Kb4 {[%clk 0:00:06]} 64. Re4+ {[%clk 0:00:04]}  Ka5 {[%clk 0:00:06]} 65. g6 {[%clk 0:00:03]}  a3 {[%clk 0:00:06]} 66. Re8 {[%clk 0:00:03]}  b5 {[%clk 0:00:05]} 67. Rg8 {[%clk 0:00:03]}  Kb4 {[%clk 0:00:05]} 68. Ke4 {[%clk 0:00:02]}  Kb3 {[%clk 0:00:05]} 69. Kf5 {[%clk 0:00:02]}  a2 {[%clk 0:00:04]} 70. Ke6 {[%clk 0:00:00]}  Ra7 {[%clk 0:00:04]} 0-1


[Site "https://www.chess.com"]

[Event "Titled Tuesday Blitz August 15 Late 2023"]
[White "Sadhwani, Raunak"]
[Black "Jaracz, Pawel"]
[WhiteFideId "35093487"]
[BlackFideId "1102222"]
[WhiteElo "3014"]
[BlackElo "2730"]
[Result "1-0"]
[Round "3"]
[TimeControl "180+1"]
[Date "2023.08.15"]
[WhiteClock "0:01:43"]
[BlackClock "0:00:29"]
[Board "12"]

1. e4 {[%clk 0:02:59]}  c5 {[%clk 0:02:52]} 2. Na3 {[%clk 0:02:56]}  a6 {[%clk 0:02:51]} 3. c3 {[%clk 0:02:55]}  d6 {[%clk 0:02:49]} 4. d4 {[%clk 0:02:54]}  Nf6 {[%clk 0:02:49]} 5. Bd3 {[%clk 0:02:49]}  Nc6 {[%clk 0:02:47]} 6. Nc2 {[%clk 0:02:45]}  g6 {[%clk 0:02:46]} 7. Nf3 {[%clk 0:02:44]}  Bg7 {[%clk 0:02:46]} 8. O-O {[%clk 0:02:45]}  O-O {[%clk 0:02:45]} 9. a4 {[%clk 0:02:43]}  e5 {[%clk 0:02:31]} 10. dxc5 {[%clk 0:02:42]}  dxc5 {[%clk 0:02:31]} 11. Bg5 {[%clk 0:02:40]}  h6 {[%clk 0:02:23]} 12. Bxf6 {[%clk 0:02:41]}  Bxf6 {[%clk 0:02:20]} 13. Ne3 {[%clk 0:02:41]}  Ne7 {[%clk 0:02:12]} 14. Qc2 {[%clk 0:02:35]}  Qc7 {[%clk 0:02:08]} 15. Bc4 {[%clk 0:02:35]}  Bd7 {[%clk 0:01:48]} 16. Rfd1 {[%clk 0:02:24]}  Bc6 {[%clk 0:01:47]} 17. h4 {[%clk 0:02:16]}  b5 {[%clk 0:01:43]} 18. Bd5 {[%clk 0:02:13]}  Rad8 {[%clk 0:01:34]} 19. h5 {[%clk 0:02:05]}  Kg7 {[%clk 0:01:28]} 20. axb5 {[%clk 0:01:59]}  axb5 {[%clk 0:01:18]} 21. c4 {[%clk 0:01:57]}  Rb8 {[%clk 0:00:55]} 22. hxg6 {[%clk 0:01:50]}  fxg6 {[%clk 0:00:55]} 23. Bxc6 {[%clk 0:01:50]}  Qxc6 {[%clk 0:00:53]} 24. Ra7 {[%clk 0:01:50]}  Rf7 {[%clk 0:00:51]} 25. Rdd7 {[%clk 0:01:48]}  Rbf8 {[%clk 0:00:45]} 26. cxb5 {[%clk 0:01:44]}  Qxb5 {[%clk 0:00:45]} 27. Nc4 {[%clk 0:01:45]}  Qb8 {[%clk 0:00:36]} 28. Nd6 {[%clk 0:01:45]}  Nc6 {[%clk 0:00:29]} 29. Rxf7+ {[%clk 0:01:43]} 1-0


[Site "https://www.chess.com"]